{"text_format":"3","workbook":"xlsx","n_sheets":2,"sheets":["Bắt đầu","Ngân sách đám cưới"],"read":"whole","date_system":"1900"}

{"sheet":"Bắt đầu","index":0,"n_rows":7,"n_cols":2,"rows_kept":7}
[null,"GIỚI THIỆU VỀ MẪU NÀY"]
[null,"Sử dụng mẫu này để ghi nhật ký các chi phí đám cưới thực tế của bạn về các mục khác nhau, đồng thời theo dõi các mục này dựa trên số tiền đã lên ngân sách."]
[null,"Nhập chi phí cho trang phục, đồ trang trí, quà tặng, hoa, nhạc, ảnh, tiếp tân, văn phòng phẩm, phương tiện đi lại và các mục khác vào bảng tương ứng."]
[null,"Tổng chi phí ước tính và tổng chi phí thực tế được tính tự động."]
[null,"Lưu ý: "]
[null,"Hướng dẫn bổ sung nằm ở cột A của trang tính NGÂN SÁCH ĐÁM CƯỚI. Văn bản này đã được ẩn một cách chủ ý. Để loại bỏ văn bản, chọn cột A, rồi chọn XÓA. Để bỏ ẩn văn bản, chọn cột A, rồi thay đổi màu phông chữ."]
[null,"Để tìm hiểu thêm về bảng, hãy nhấn SHIFT rồi nhấn F10 trong bảng, chọn tùy chọn BẢNG, sau đó chọn VĂN BẢN THAY THẾ."]

{"sheet":"Ngân sách đám cưới","index":1,"n_rows":93,"n_cols":4,"rows_kept":93,"merged":[[0,1,0,3],[2,1,2,3],[6,1,6,3],[15,1,15,3],[25,1,25,3],[34,1,34,3],[43,1,43,3],[50,1,50,3],[59,1,59,3],[68,1,68,3],[77,1,77,3],[85,1,85,3]]}
[null,"NGÂN SÁCH ĐÁM CƯỚI"]
[]
[null,"TỔNG CHI PHÍ "]
[null,"Mục ","Ước tính","Thực tế"]
[null,"Tổng chi phí ",{"$f":"SUM(May_mặc[[#Totals],[Ước tính]],Đồ_trang_trí[[#Totals],[Ước tính]],Quà_tặng[[#Totals],[Ước tính]],Hoa[[#Totals],[Ước tính]],Âm_nhạc[[#Totals],[Ước tính]],Chụp_ảnh[[#Totals],[Ước tính]],Đón_tiếp[[#Totals],[Ước tính]],Văn_phòng_phẩm_và_in_ấn[[#Totals],[Ước tính]],Đi_lại[[#Totals],[Ước tính]],Chi_phí_khác[[#Totals],[Ước tính]])","v":0},{"$f":"SUM(May_mặc[[#Totals],[Thực tế]],Đồ_trang_trí[[#Totals],[Thực tế]],Quà_tặng[[#Totals],[Thực tế]],Hoa[[#Totals],[Thực tế]],Âm_nhạc[[#Totals],[Thực tế]],Chụp_ảnh[[#Totals],[Thực tế]],Đón_tiếp[[#Totals],[Thực tế]],Văn_phòng_phẩm_và_in_ấn[[#Totals],[Thực tế]],Đi_lại[[#Totals],[Thực tế]],Chi_phí_khác[[#Totals],[Thực_tại]],)","v":0}]
[]
[null,"TRANG PHỤC"]
[null,"Mục ","Ước tính","Thực tế"]
[null,"Nhẫn đính hôn"]
[null,"Nhẫn cưới"]
[null,"Áo cưới"]
[null,"Mạng che mặt/mũ"]
[null,"Khác:"]
[null,"Tổng chi phí cho trang phục",{"$f":"SUBTOTAL(109,May_mặc[Ước tính])","v":0},{"$f":"SUBTOTAL(109,May_mặc[Thực tế])","v":0}]
[]
[null,"ĐỒ TRANG TRÍ"]
[null,"Mục ","Ước tính","Thực tế"]
[null,"Quỳ trên ghế dài ở nhà thờ/chỗ ngồi khác"]
[null,"Vật trang trí trên bàn (trừ hoa)"]
[null,"Nến"]
[null,"Đèn"]
[null,"Bóng bay"]
[null,"Khác:"]
[null,"Tổng chi phí cho đồ trang trí",{"$f":"SUBTOTAL(109,Đồ_trang_trí[Ước tính])","v":0},{"$f":"SUBTOTAL(109,Đồ_trang_trí[Thực tế])","v":0}]
[]
[null,"QUÀ TẶNG"]
[null,"Mục ","Ước tính","Thực tế"]
[null,"Người tham dự"]
[null,"Cô dâu và chú rể"]
[null,"Cha mẹ"]
[null,"Người đọc/người tham dự khác"]
[null,"Khác:"]
[null,"Tổng chi phí cho quà tặng",{"$f":"SUBTOTAL(109,Quà_tặng[Ước tính])","v":0},{"$f":"SUBTOTAL(109,Quà_tặng[Thực tế])","v":0}]
[]
[null,"HOA"]
[null,"Mục ","Ước tính","Thực tế"]
[null,"Hoa cô dâu"]
[null,"Hoa cài áo"]
[null,"Hoa đeo tay"]
[null,"Nghi lễ"]
[null,"Khác:"]
[null,"Tổng chi phí cho hoa",{"$f":"SUBTOTAL(109,Hoa[Ước tính])","v":0},{"$f":"SUBTOTAL(109,Hoa[Thực tế])","v":0}]
[]
[null,"ÂM NHẠC"]
[null,"Mục ","Ước tính","Thực tế"]
[null,"Nhạc công cho buổi lễ"]
[null,"Ban nhạc/DJ cho quầy đón khách"]
[null,"Khác:"]
[null,"Tổng chi phí cho nhạc",{"$f":"SUBTOTAL(109,Âm_nhạc[Ước tính])","v":0},{"$f":"SUBTOTAL(109,Âm_nhạc[Thực tế])","v":0}]
[]
[null,"CHỤP ẢNH"]
[null,"Mục ","Ước tính","Thực tế"]
[null,"Trang trọng"]
[null,"Ngay thẳng"]
[null,"Bản in thêm"]
[null,"Album ảnh"]
[null,"Khác:"]
[null,"Tổng chi phí cho nhiếp ảnh",{"$f":"SUBTOTAL(109,Chụp_ảnh[Ước tính])","v":0},{"$f":"SUBTOTAL(109,Chụp_ảnh[Thực tế])","v":0}]
[]
[null,"TIẾP KHÁCH "]
[null,"Mục ","Ước tính","Thực tế"]
[null,"Phí phòng/sảnh"]
[null,"Bàn và ghế"]
[null,"Thực phẩm"]
[null,"Khăn trải bàn"]
[null,"Khác:"]
[null,"Tổng chi phí cho tiếp khách (không bao gồm nhạc và đồ trang trí)",{"$f":"SUBTOTAL(109,Đón_tiếp[Ước tính])","v":0},{"$f":"SUBTOTAL(109,Đón_tiếp[Thực tế])","v":0}]
[]
[null,"VĂN PHÒNG PHẨM & IN ẤN"]
[null,"Mục ","Ước tính","Thực tế"]
[null,"Thư mời"]
[null,"Thông báo"]
[null,"Thiệp cảm ơn"]
[null,"Văn phòng phẩm cá nhân"]
[null,"Khác:"]
[null,"Tổng chi phí cho văn phòng phẩm/in ấn",{"$f":"SUBTOTAL(109,Văn_phòng_phẩm_và_in_ấn[Ước tính])","v":0},{"$f":"SUBTOTAL(109,Văn_phòng_phẩm_và_in_ấn[Thực tế])","v":0}]
[]
[null,"ĐI LẠI"]
[null,"Mục ","Ước tính","Thực tế"]
[null,"Xe sang/xe đẩy"]
[null,"Đỗ xe"]
[null,"Taxi"]
[null,"Khác:"]
[null,"Tổng chi phí cho phương tiện đi lại",{"$f":"SUBTOTAL(109,Đi_lại[Ước tính])","v":0},{"$f":"SUBTOTAL(109,Đi_lại[Thực tế])","v":0}]
[]
[null,"CHI PHÍ KHÁC"]
[null,"Mục ","Ước tính","Thực_tại"]
[null,"Tu sĩ hành lễ"]
[null,"Phí nhà thờ/lễ"]
[null,"Điều phối viên đám cưới"]
[null,"Tổng duyệt trước ngày cưới"]
[null,"Khác:"]
[null,"Tổng chi phí khác",{"$f":"SUBTOTAL(109,Chi_phí_khác[Ước tính])","v":0},{"$f":"SUBTOTAL(109,Chi_phí_khác[Thực_tại])","v":0}]